[Event "44th Chess Olympiad Women 2022"]
[Site "Chennai"]
[Date "2022.07.31"]
[Round "3.40"]
[White "Chaves, Jussara"]
[Black "Kapali, Binita"]
[Result "1-0"]
[WhiteElo "1933"]
[BlackElo "1511"]
[Annotator "NA RC"]
[PlyCount "127"]
[EventDate "2022.??.??"]
[TimeControl "60"]

1. f4 {[%emt 1:31:00]} Nf6 {[%emt 1:31:00]} 2. b3 {[%emt 0:00:00]} d5 {[%emt 0:
00:00]} 3. Nf3 {[%emt 0:00:00]} c5 {[%emt 0:00:00]} 4. Bb2 {[%emt 0:00:00]} Nc6
{[%emt 0:00:00]} 5. e3 {[%emt 0:00:00]} Bf5 {[%emt 0:00:00]} 6. Bb5 {[%emt 0:
00:00]} a6 {[%emt 0:00:00]} 7. Bxc6+ {[%emt 0:00:00]} bxc6 {[%emt 0:00:00]} 8.
Ne5 {[%emt 0:00:00]} Qd6 {[%emt 0:00:00]} 9. Nc3 {[%emt 0:00:00]} g6 {[%emt 0:
00:00]} 10. Na4 {[%emt 0:00:00]} Bg7 {[%emt 0:00:00]} 11. Ba3 {[%emt 0:00:00]}
Nd7 {[%emt 0:00:00]} 12. Nxd7 {[%emt 0:00:00]} Bxd7 {[%emt 0:00:00]} 13. Bxc5 {
[%emt 0:00:00]} Qc7 {[%emt 0:00:00]} 14. Rc1 {[%emt 0:00:00]} Rb8 {[%emt 0:00:
00]} 15. O-O {[%emt 0:00:00]} Be6 {[%emt 0:00:00]} 16. Qe2 {[%emt 0:00:00]} a5
{[%emt 0:00:00]} 17. d3 {[%emt 0:00:00]} O-O {[%emt 0:00:00]} 18. e4 {[%emt 0:
00:00]} Rfe8 {[%emt 0:00:00]} 19. f5 {[%emt 0:00:00]} Bd7 {[%emt 0:00:00]} 20.
Qf2 {[%emt 0:00:00]} dxe4 {[%emt 0:00:00]} 21. dxe4 {[%emt 0:00:00]} f6 {
[%emt 0:00:00]} 22. Rcd1 {[%emt 0:00:00]} Bf8 {[%emt 0:00:00]} 23. Bb6 {
[%emt 0:00:00]} Qb7 {[%emt 0:00:00]} 24. Qd4 {[%emt 0:00:00]} Bc8 {[%emt 0:00:
00]} 25. Bxa5 {[%emt 0:00:00]} e5 {[%emt 0:00:00]} 26. fxe6 {[%emt 0:00:00]}
Bg7 {[%emt 0:00:00]} 27. Nc5 {[%emt 0:00:00]} Qe7 {[%emt 0:00:00]} 28. Bd8 {
[%emt 0:00:00]} Qf8 {[%emt 0:00:00]} 29. Qc4 {[%emt 0:00:00]} Rb5 {[%emt 0:00:
00]} 30. e7+ {[%emt 0:00:00]} Qf7 {[%emt 0:00:00]} 31. Qxf7+ {[%emt 0:00:00]}
Kxf7 {[%emt 0:00:00]} 32. Nd3 {[%emt 0:00:03]} Bh6 {[%emt 0:00:00]} 33. e5 {
[%emt 0:01:39]} Be3+ {[%emt 0:00:00]} 34. Kh1 {[%emt 0:00:39]} Bf5 {[%emt 0:00:
00]} 35. exf6 {[%emt 0:00:54]} Bd4 {[%emt 0:00:00]} 36. a4 {[%emt 0:03:53]} Rb7
{[%emt 0:00:00]} 37. a5 {[%emt 0:03:19]} Bxf6 {[%emt 0:00:05]} 38. a6 {[%emt 0:
00:00]} Ra7 {[%emt 0:00:39]} 39. Nc5 {[%emt 0:02:41]} Bxc2 {[%emt 0:08:25]} 40.
Rd2 {[%emt 0:03:02]} Bf5 {[%emt 0:01:11]} 41. h3 {[%emt 0:31:00]} Bxe7 {
[%emt 0:37:31]} 42. Bb6 {[%emt 0:01:38]} Raa8 {[%emt 0:00:00]} 43. g4 {[%emt 0:
00:00]} Bxc5 {[%emt 0:00:00]} 44. Bxc5 {[%emt 0:00:00]} Re5 {[%emt 0:00:00]}
45. b4 {[%emt 0:00:00]} Rxa6 {[%emt 0:00:00]} 46. gxf5 {[%emt 0:00:00]} Ra3 {
[%emt 0:00:00]} 47. fxg6+ {[%emt 0:00:00]} Kxg6 {[%emt 0:00:00]} 48. Rg2+ {
[%emt 0:00:00]} Kh5 {[%emt 0:00:00]} 49. Kh2 {[%emt 0:00:00]} Rd5 {[%emt 0:00:
00]} 50. Rg3 {[%emt 0:00:00]} Rd2+ {[%emt 0:00:00]} 51. Rf2 {[%emt 0:00:00]}
Rxf2+ {[%emt 0:00:00]} 52. Bxf2 {[%emt 0:00:00]} Ra2 {[%emt 0:00:00]} 53. Kg2 {
[%emt 0:00:00]} Rb2 {[%emt 0:00:00]} 54. Rg4 {[%emt 0:00:00]} Rc2 {[%emt 0:00:
00]} 55. Kf3 {[%emt 0:00:00]} Rc3+ {[%emt 0:00:00]} 56. Be3 {[%emt 0:00:00]}
Rb3 {[%emt 0:00:00]} 57. Rc4 {[%emt 0:00:00]} Rb2 {[%emt 0:00:00]} 58. Rc5+ {
[%emt 0:00:00]} Kg6 {[%emt 0:00:00]} 59. Rxc6+ {[%emt 0:00:00]} Kf7 {[%emt 0:
00:00]} 60. Rc4 {[%emt 0:00:00]} Rb3 {[%emt 0:00:00]} 61. h4 {[%emt 0:00:00]}
Kg6 {[%emt 0:00:00]} 62. Ke4 {[%emt 0:00:00]} h5 {[%emt 0:00:00]} 63. Bg5 {
[%emt 0:00:00]} Kf7 {[%emt 0:00:00]} 64. Kd5 {[%emt 0:00:00]} 1-0

[Event "44th Chess Olympiad Women 2022"]
[Site "Chennai"]
[Date "2022.07.31"]
[Round "3.40"]
[White "Lohani, Sujana"]
[Black "Pipiras, Filipa Fortuna"]
[Result "1-0"]
[WhiteElo "1697"]
[BlackElo "2139"]
[Annotator "NA RC"]
[PlyCount "69"]
[EventDate "2022.??.??"]
[TimeControl "60"]

1. d4 {[%emt 0:00:06]} d5 {[%emt 0:00:22]} 2. Nf3 {[%emt 0:00:12]} Nf6 {
[%emt 0:00:34]} 3. c4 {[%emt 0:04:45]} e6 {[%emt 0:00:32]} 4. g3 {[%emt 0:00:
00]} dxc4 {[%emt 0:00:45]} 5. Qa4+ {[%emt 0:01:32]} Nbd7 {[%emt 0:05:10]} 6.
Bg2 {[%emt 0:01:31]} c5 {[%emt 0:04:23]} 7. O-O {[%emt 0:04:41]} a6 {[%emt 0:
00:00]} 8. Qxc4 {[%emt 0:06:04]} b5 {[%emt 0:03:28]} 9. Qc2 {[%emt 0:01:40]}
Bb7 {[%emt 0:01:49]} 10. Rd1 {[%emt 0:13:10]} Rc8 {[%emt 0:03:50]} 11. Qd2 {
[%emt 0:05:30]} cxd4 {[%emt 0:22:45]} 12. Nxd4 {[%emt 0:03:54]} Bxg2 {[%emt 0:
00:00]} 13. Kxg2 {[%emt 0:00:28]} Bc5 {[%emt 0:01:23]} 14. Nc3 {[%emt 0:06:01]}
O-O {[%emt 0:05:03]} 15. Qg5 {[%emt 0:06:38]} Qb6 {[%emt 0:08:02]} 16. Qh4 {
[%emt 0:07:59]} Ne5 {[%emt 0:03:23]} 17. Ne4 {[%emt 0:08:32]} Qb7 {[%emt 0:00:
00]} 18. f3 {[%emt 0:02:05]} Nxe4 {[%emt 0:02:53]} 19. Qxe4 {[%emt 0:00:17]}
Qxe4 {[%emt 0:00:09]} 20. fxe4 {[%emt 0:00:07]} Rfd8 {[%emt 0:00:58]} 21. e3 {
[%emt 0:06:25]} Nc6 {[%emt 0:02:40]} 22. a4 {[%emt 0:07:28]} Bxd4 {[%emt 0:00:
00]} 23. exd4 {[%emt 0:00:13]} Nxd4 {[%emt 0:00:29]} 24. axb5 {[%emt 0:00:55]}
axb5 {[%emt 0:02:38]} 25. Ra7 {[%emt 0:04:20]} f6 {[%emt 0:01:37]} 26. Rb7 {
[%emt 0:01:31]} Rc2+ {[%emt 0:02:09]} 27. Kh3 {[%emt 0:00:40]} h5 {[%emt 0:00:
00]} 28. Be3 {[%emt 0:02:12]} g5 {[%emt 0:00:30]} 29. g4 {[%emt 0:02:06]} hxg4+
{[%emt 0:01:01]} 30. Kxg4 {[%emt 0:00:22]} f5+ {[%emt 0:00:52]} 31. Kh5 {
[%emt 0:01:41]} Rxh2+ {[%emt 0:00:39]} 32. Kg6 {[%emt 0:00:18]} e5 {[%emt 0:00:
00]} 33. exf5 {[%emt 0:01:49]} Rh3 {[%emt 0:01:14]} 34. Bxd4 {[%emt 0:00:24]}
exd4 {[%emt 0:00:21]} 35. Rxd4 {[%emt 0:00:22]} 1-0

[Event "44th Chess Olympiad Women 2022"]
[Site "Chennai"]
[Date "2022.07.31"]
[Round "3.40"]
[White "Silva, Ana Ines Teixeira D"]
[Black "Neupane, Anisha"]
[Result "1-0"]
[WhiteElo "1775"]
[BlackElo "1488"]
[Annotator "NA"]
[PlyCount "63"]
[EventDate "2022.??.??"]
[TimeControl "60"]

1. e4 {[%emt 0:00:04]} c5 {[%emt 0:00:09]} 2. Nc3 {[%emt 0:00:08]} d6 {[%emt 0:
00:00]} 3. g3 {[%emt 0:00:07]} Nc6 {[%emt 0:00:25]} 4. Bg2 {[%emt 0:00:18]} g6
{[%emt 0:00:18]} 5. d3 {[%emt 0:00:17]} Bg7 {[%emt 0:01:04]} 6. Be3 {[%emt 0:
00:00]} e6 {[%emt 0:02:12]} 7. Qd2 {[%emt 0:00:27]} Rb8 {[%emt 0:01:04]} 8.
Nge2 {[%emt 0:03:47]} Nge7 {[%emt 0:03:10]} 9. Bh6 {[%emt 0:02:52]} O-O {
[%emt 0:09:26]} 10. h4 {[%emt 0:02:54]} Ne5 {[%emt 0:14:48]} 11. h5 {[%emt 0:
00:00]} Ng4 {[%emt 0:07:40]} 12. Bxg7 {[%emt 0:05:13]} Kxg7 {[%emt 0:01:11]}
13. f3 {[%emt 0:34:22]} Nf6 {[%emt 0:07:47]} 14. g4 {[%emt 0:10:40]} Rh8 {
[%emt 0:08:40]} 15. hxg6 {[%emt 0:05:26]} fxg6 {[%emt 0:14:30]} 16. Qh6+ {
[%emt 0:04:05]} Kf7 {[%emt 0:03:34]} 17. Qh4 {[%emt 0:03:01]} e5 {[%emt 0:00:
00]} 18. O-O-O {[%emt 0:02:33]} b5 {[%emt 0:06:08]} 19. f4 {[%emt 0:01:12]}
Nxg4 {[%emt 0:05:25]} 20. fxe5 {[%emt 0:01:15]} Nxe5 {[%emt 0:01:44]} 21. Rdf1+
{[%emt 0:00:11]} Ke8 {[%emt 0:00:43]} 22. Qf6 {[%emt 0:01:01]} Kd7 {[%emt 0:00:
00]} 23. d4 {[%emt 0:06:56]} cxd4 {[%emt 0:03:36]} 24. Nxd4 {[%emt 0:00:00]}
Ba6 {[%emt 0:01:06]} 25. Bh3+ {[%emt 0:00:00]} Nf5 {[%emt 0:01:33]} 26. Qxd8+ {
[%emt 0:00:00]} Rbxd8 {[%emt 0:00:27]} 27. exf5 {[%emt 0:00:00]} Ke7 {[%emt 0:
00:00]} 28. Nd5+ {[%emt 0:00:00]} Kf7 {[%emt 0:01:04]} 29. fxg6+ {[%emt 0:00:
00]} Kxg6 {[%emt 0:00:23]} 30. Rhg1+ {[%emt 0:00:31]} Kh6 {[%emt 0:00:15]} 31.
Nf5+ {[%emt 0:00:18]} Kh5 {[%emt 0:00:26]} 32. Nf4# {[%emt 0:00:45]} 1-0

[Event "44th Chess Olympiad Women 2022"]
[Site "Chennai"]
[Date "2022.07.31"]
[Round "3.41"]
[White "Cordero, Daniela"]
[Black "Henderson de La Fuente, Andrea"]
[Result "0-1"]
[WhiteElo "2005"]
[BlackElo "1962"]
[Annotator "NA RC"]
[PlyCount "46"]
[EventDate "2022.??.??"]
[TimeControl "60"]

1. d4 {[%emt 0:00:02]} Nf6 {[%emt 0:00:11]} 2. Nf3 {[%emt 0:00:35]} b6 {
[%emt 0:00:16]} 3. c4 {[%emt 0:01:31]} Bb7 {[%emt 0:03:40]} 4. Nc3 {[%emt 0:00:
00]} g6 {[%emt 0:01:00]} 5. Bg5 {[%emt 0:01:00]} Bg7 {[%emt 0:00:57]} 6. Qd2 {
[%emt 0:06:55]} h6 {[%emt 0:05:31]} 7. Bxf6 {[%emt 0:03:18]} Bxf6 {[%emt 0:00:
00]} 8. e4 {[%emt 0:00:08]} d6 {[%emt 0:01:36]} 9. Be2 {[%emt 0:01:38]} Nd7 {
[%emt 0:01:31]} 10. a4 {[%emt 0:02:40]} e5 {[%emt 0:20:26]} 11. d5 {[%emt 0:00:
00]} Nc5 {[%emt 0:01:11]} 12. Ra3 {[%emt 0:00:37]} a5 {[%emt 0:01:04]} 13. h4 {
[%emt 0:02:43]} h5 {[%emt 0:08:57]} 14. Ng5 {[%emt 0:06:16]} Bc8 {[%emt 0:00:
00]} 15. Bd1 {[%emt 0:14:07]} Bg4 {[%emt 0:08:25]} 16. Bc2 {[%emt 0:03:49]}
Bxg5 {[%emt 0:09:18]} 17. hxg5 {[%emt 0:00:11]} Bd7 {[%emt 0:02:47]} 18. Ne2 {
[%emt 0:06:07]} f6 {[%emt 0:03:55]} 19. gxf6 {[%emt 0:26:40]} Qxf6 {[%emt 0:00:
00]} 20. O-O {[%emt 0:01:32]} h4 {[%emt 0:04:55]} 21. f4 {[%emt 0:03:43]} h3 {
[%emt 0:02:06]} 22. g3 {[%emt 0:01:05]} Bg4 {[%emt 0:02:05]} 23. fxe5 {[%emt 0:
00:00]} h2+ {[%emt 0:04:51]} 0-1

[Event "44th Chess Olympiad Women 2022"]
[Site "Chennai"]
[Date "2022.07.31"]
[Round "3.41"]
[White "De la Riva Real, Ariadna"]
[Black "Ramirez, Maria Eugenia"]
[Result "0-1"]
[WhiteElo "1649"]
[BlackElo "2005"]
[Annotator "NA RC"]
[PlyCount "52"]
[EventDate "2022.??.??"]
[TimeControl "60"]

1. e4 {[%emt 0:00:03]} e5 {[%emt 0:00:06]} 2. Nf3 {[%emt 0:00:06]} Nc6 {
[%emt 0:00:08]} 3. Nc3 {[%emt 0:00:06]} Nf6 {[%emt 0:00:07]} 4. d4 {[%emt 0:00:
00]} exd4 {[%emt 0:01:36]} 5. Nxd4 {[%emt 0:00:10]} Bb4 {[%emt 0:01:15]} 6.
Nxc6 {[%emt 0:01:10]} bxc6 {[%emt 0:03:17]} 7. Bd3 {[%emt 0:00:53]} d6 {
[%emt 0:03:12]} 8. h3 {[%emt 0:01:57]} h6 {[%emt 0:01:40]} 9. O-O {[%emt 0:00:
00]} O-O {[%emt 0:04:06]} 10. Qf3 {[%emt 0:06:08]} Re8 {[%emt 0:04:12]} 11. Bf4
{[%emt 0:05:42]} Rb8 {[%emt 0:04:27]} 12. Rfe1 {[%emt 0:05:40]} Nd7 {[%emt 0:
00:00]} 13. Qg3 {[%emt 0:09:55]} Kh8 {[%emt 0:11:29]} 14. Bc4 {[%emt 0:07:47]}
Qf6 {[%emt 0:03:00]} 15. Re3 {[%emt 0:06:02]} g5 {[%emt 0:03:08]} 16. Rf3 {
[%emt 0:01:29]} gxf4 {[%emt 0:07:32]} 17. Rxf4 {[%emt 0:00:28]} Qg7 {[%emt 0:
00:00]} 18. Rg4 {[%emt 0:12:34]} Qh7 {[%emt 0:01:27]} 19. Rh4 {[%emt 0:03:42]}
Ne5 {[%emt 0:05:57]} 20. Bb3 {[%emt 0:08:34]} Rg8 {[%emt 0:00:55]} 21. Qe3 {
[%emt 0:00:55]} Bc5 {[%emt 0:07:08]} 22. Qe2 {[%emt 0:02:54]} Ng6 {[%emt 0:00:
00]} 23. Qh5 {[%emt 0:02:19]} Nxh4 {[%emt 0:00:36]} 24. Qxh4 {[%emt 0:00:02]}
Qg6 {[%emt 0:00:24]} 25. g3 {[%emt 0:00:27]} Qg5 {[%emt 0:00:22]} 26. g4 Qxg4+
{[%emt 0:00:31]} 0-1

[Event "44th Chess Olympiad Women 2022"]
[Site "Chennai"]
[Date "2022.07.31"]
[Round "3.41"]
[White "De la Riva Real, Jana"]
[Black "Coro, Soledad"]
[Result "0-1"]
[WhiteElo "1167"]
[BlackElo "1623"]
[Annotator "NA RC"]
[PlyCount "90"]
[EventDate "2022.??.??"]
[TimeControl "60"]

1. e4 {[%emt 0:00:03]} c5 {[%emt 0:00:06]} 2. Nc3 {[%emt 0:00:11]} Nc6 {
[%emt 0:00:15]} 3. f4 {[%emt 0:00:13]} g6 {[%emt 0:00:17]} 4. Nf3 {[%emt 0:00:
00]} Bg7 {[%emt 0:00:06]} 5. Bc4 {[%emt 0:00:27]} Na5 {[%emt 0:02:24]} 6. Be2 {
[%emt 0:03:53]} d6 {[%emt 0:11:41]} 7. O-O {[%emt 0:04:05]} Nf6 {[%emt 0:04:37]
} 8. d4 {[%emt 0:10:52]} cxd4 {[%emt 0:02:40]} 9. Qxd4 {[%emt 0:01:25]} O-O {
[%emt 0:00:07]} 10. Qf2 {[%emt 0:06:50]} Bd7 {[%emt 0:23:48]} 11. Qh4 {[%emt 0:
00:00]} Qb6+ {[%emt 0:10:40]} 12. Kh1 {[%emt 0:03:42]} Rfe8 {[%emt 0:02:04]}
13. e5 {[%emt 0:04:16]} Ng4 {[%emt 0:03:45]} 14. Ng5 {[%emt 0:08:34]} h5 {
[%emt 0:12:03]} 15. Bxg4 {[%emt 0:08:16]} Bxg4 {[%emt 0:00:12]} 16. h3 {
[%emt 0:00:42]} Bf5 {[%emt 0:02:13]} 17. g4 {[%emt 0:06:54]} Bxc2 {[%emt 0:00:
00]} 18. gxh5 {[%emt 0:00:38]} gxh5 {[%emt 0:02:41]} 19. e6 {[%emt 0:03:04]}
Qc6+ {[%emt 0:15:43]} 20. Kh2 {[%emt 0:02:40]} Rf8 {[%emt 0:00:30]} 21. exf7+ {
[%emt 0:00:29]} Rxf7 {[%emt 0:00:24]} 22. Nxf7 {[%emt 0:00:08]} Kxf7 {[%emt 0:
00:00]} 23. Qxh5+ {[%emt 0:00:14]} Bg6 {[%emt 0:01:39]} 24. Qxa5 {[%emt 0:00:
00]} e6 {[%emt 0:00:41]} 25. Qb5 {[%emt 0:01:01]} Qc7 {[%emt 0:00:30]} 26. Qb3
{[%emt 0:02:33]} Rh8 {[%emt 0:00:29]} 27. Nb5 {[%emt 0:03:21]} Qc5 {[%emt 0:00:
00]} 28. Be3 {[%emt 0:01:37]} Qc6 {[%emt 0:01:47]} 29. Rac1 {[%emt 0:01:12]}
Qa6 {[%emt 0:01:00]} 30. Rc7+ {[%emt 0:01:47]} Kg8 {[%emt 0:00:06]} 31. Rc8+ {
[%emt 0:00:32]} Kh7 {[%emt 0:00:11]} 32. Rxh8+ {[%emt 0:00:09]} Bxh8 {[%emt 0:
00:00]} 33. Rc1 {[%emt 0:01:10]} d5 {[%emt 0:00:52]} 34. Rc7+ {[%emt 0:01:05]}
Kg8 {[%emt 0:00:29]} 35. h4 {[%emt 0:03:04]} Bf6 {[%emt 0:01:20]} 36. Kg3 {
[%emt 0:01:36]} Qa5 {[%emt 0:00:12]} 37. Rc1 {[%emt 0:01:46]} Qd8 {[%emt 0:00:
00]} 38. Rh1 {[%emt 0:00:07]} a6 {[%emt 0:00:12]} 39. Nc3 {[%emt 0:00:32]} Qd7
{[%emt 0:00:44]} 40. Na4 {[%emt 0:01:51]} Qg7 {[%emt 0:01:01]} 41. Kf2 {
[%emt 0:32:06]} Qh7 {[%emt 0:30:33]} 42. Ke1 {[%emt 0:00:00]} Bc2 {[%emt 0:00:
00]} 43. Qb4 {[%emt 0:00:00]} Bxh4+ {[%emt 0:00:00]} 44. Rxh4 {[%emt 0:00:00]}
Qxh4+ {[%emt 0:00:00]} 45. Bf2 {[%emt 0:00:00]} Qh1+ {[%emt 0:00:00]} 0-1

[Event "44th Chess Olympiad Women 2022"]
[Site "Chennai"]
[Date "2022.07.31"]
[Round "3.42"]
[White "Acevedo Mendez, Lisseth"]
[Black "Buhagiar, Melita Sunan"]
[Result "0-1"]
[WhiteElo "1784"]
[BlackElo "1431"]
[Annotator "NA RC"]
[PlyCount "136"]
[EventDate "2022.??.??"]
[TimeControl "60"]

1. d4 {[%emt 0:00:07]} d5 {[%emt 0:00:21]} 2. Bf4 {[%emt 0:00:06]} Nf6 {
[%emt 0:00:18]} 3. e3 {[%emt 0:00:26]} c5 {[%emt 0:00:53]} 4. Nf3 {[%emt 0:00:
00]} Nc6 {[%emt 0:00:53]} 5. Nbd2 {[%emt 0:00:57]} Qb6 {[%emt 0:06:46]} 6. dxc5
{[%emt 0:02:06]} Qxc5 {[%emt 0:07:48]} 7. c3 {[%emt 0:00:25]} Bf5 {[%emt 0:00:
00]} 8. Be2 {[%emt 0:02:11]} h6 {[%emt 0:03:11]} 9. h3 {[%emt 0:02:19]} e6 {
[%emt 0:03:02]} 10. Qb3 {[%emt 0:03:52]} Qb6 {[%emt 0:10:02]} 11. Nd4 {[%emt 0:
00:00]} Bh7 {[%emt 0:10:41]} 12. Bb5 {[%emt 0:01:40]} Rc8 {[%emt 0:06:07]} 13.
N2f3 {[%emt 0:07:44]} Nd7 {[%emt 0:14:05]} 14. Ne5 {[%emt 0:06:47]} Nc5 {
[%emt 0:02:49]} 15. Bxc6+ {[%emt 0:13:44]} Rxc6 {[%emt 0:00:45]} 16. Qb5 {
[%emt 0:05:22]} Qxb5 {[%emt 0:03:40]} 17. Nxb5 {[%emt 0:00:06]} Nd3+ {[%emt 0:
00:00]} 18. Nxd3 {[%emt 0:01:41]} Bxd3 {[%emt 0:00:07]} 19. Nd4 {[%emt 0:02:48]
} Rb6 {[%emt 0:02:16]} 20. O-O-O {[%emt 0:00:09]} Bh7 {[%emt 0:00:59]} 21. Bc7
{[%emt 0:01:21]} Ra6 {[%emt 0:01:02]} 22. a3 {[%emt 0:02:07]} Kd7 {[%emt 0:00:
00]} 23. Bg3 {[%emt 0:01:10]} Bd6 {[%emt 0:01:14]} 24. Bxd6 {[%emt 0:00:13]}
Rxd6 {[%emt 0:00:12]} 25. h4 {[%emt 0:00:10]} a6 {[%emt 0:00:49]} 26. Rh3 {
[%emt 0:00:25]} Rc8 {[%emt 0:01:34]} 27. Rg3 {[%emt 0:00:53]} e5 {[%emt 0:00:
00]} 28. Nf3 {[%emt 0:00:25]} Ke6 {[%emt 0:00:44]} 29. Rxg7 {[%emt 0:01:12]}
Bg6 {[%emt 0:00:36]} 30. h5 {[%emt 0:00:39]} Kf6 {[%emt 0:02:07]} 31. hxg6 {
[%emt 0:01:54]} Kxg7 {[%emt 0:00:12]} 32. gxf7 {[%emt 0:00:13]} e4 {[%emt 0:00:
00]} 33. Nh4 {[%emt 0:09:03]} Kxf7 {[%emt 0:01:00]} 34. Nf5 {[%emt 0:00:06]}
Rf6 {[%emt 0:00:54]} 35. g4 {[%emt 0:05:03]} Ke6 {[%emt 0:01:26]} 36. Rh1 {
[%emt 0:01:42]} Rh8 {[%emt 0:01:24]} 37. Rh5 {[%emt 0:03:24]} Rg8 {[%emt 0:00:
00]} 38. Rh2 {[%emt 0:05:01]} Rxg4 {[%emt 0:01:26]} 39. Nd4+ {[%emt 0:00:41]}
Kd6 {[%emt 0:00:34]} 40. Kd2 {[%emt 0:00:08]} Rg5 {[%emt 0:00:51]} 41. Ke2 {
[%emt 0:30:51]} h5 {[%emt 0:31:00]} 42. f4 {[%emt 0:00:00]} exf3+ {[%emt 0:00:
00]} 43. Nxf3 {[%emt 0:00:00]} Rg4 {[%emt 0:00:00]} 44. Nd4 {[%emt 0:00:00]} h4
{[%emt 0:00:00]} 45. Kd3 {[%emt 0:00:00]} Ke5 {[%emt 0:00:00]} 46. Ne2 {
[%emt 0:00:00]} Rh6 {[%emt 0:00:00]} 47. Rh3 {[%emt 0:00:00]} Rg2 {[%emt 0:00:
00]} 48. b4 {[%emt 0:00:00]} b5 {[%emt 0:00:00]} 49. Nd4 {[%emt 0:00:00]} Rg3 {
[%emt 0:00:00]} 50. Nf3+ {[%emt 0:02:14]} Rxf3 {[%emt 0:00:21]} 51. Rxf3 {
[%emt 0:00:05]} h3 {[%emt 0:00:06]} 52. Rf1 {[%emt 0:00:05]} h2 {[%emt 0:00:24]
} 53. Rh1 {[%emt 0:00:05]} Rh3 {[%emt 0:00:27]} 54. Ke2 {[%emt 0:01:46]} Ke4 {
[%emt 0:00:11]} 55. Kf2 {[%emt 0:01:16]} Kd3 {[%emt 0:00:27]} 56. Kg2 {[%emt 0:
00:00]} Rh6 {[%emt 0:00:50]} 57. Rxh2 {[%emt 0:02:00]} Rxh2+ {[%emt 0:00:06]}
58. Kxh2 {[%emt 0:00:03]} Kxe3 {[%emt 0:00:20]} 59. Kg3 {[%emt 0:00:10]} Kd3 {
[%emt 0:00:09]} 60. Kf4 {[%emt 0:00:26]} Kxc3 {[%emt 0:00:09]} 61. Ke5 {
[%emt 0:00:36]} d4 {[%emt 0:00:32]} 62. Kd5 {[%emt 0:00:15]} d3 {[%emt 0:00:11]
} 63. Kc5 {[%emt 0:00:12]} d2 {[%emt 0:00:12]} 64. Kb6 {[%emt 0:00:04]} d1=Q {
[%emt 0:00:24]} 65. Kxa6 {[%emt 0:00:22]} Kc4 {[%emt 0:00:17]} 66. Kb6 {
[%emt 0:00:17]} Qd6+ {[%emt 0:00:28]} 67. Kb7 {[%emt 0:00:41]} Kd5 {[%emt 0:00:
00]} 68. Ka8 {[%emt 0:00:22]} Kc6 {[%emt 0:01:07]} 0-1

[Event "44th Chess Olympiad Women 2022"]
[Site "Chennai"]
[Date "2022.07.31"]
[Round "3.42"]
[White "Chuemsakul, Sarocha"]
[Black "Ptacnikova, Lenka"]
[Result "1/2-1/2"]
[WhiteElo "1684"]
[BlackElo "2066"]
[Annotator "NA RC"]
[PlyCount "76"]
[EventDate "2022.??.??"]
[TimeControl "60"]

1. Nf3 {[%emt 0:00:06]} Nf6 {[%emt 0:01:59]} 2. g3 {[%emt 0:00:22]} d5 {
[%emt 0:01:20]} 3. Bg2 {[%emt 0:00:25]} c6 {[%emt 0:01:06]} 4. O-O {[%emt 0:00:
00]} Bf5 {[%emt 0:04:36]} 5. c4 {[%emt 0:00:25]} dxc4 {[%emt 0:01:06]} 6. Na3 {
[%emt 0:07:33]} Nbd7 {[%emt 0:08:41]} 7. Nxc4 {[%emt 0:01:50]} e6 {[%emt 0:00:
00]} 8. d4 {[%emt 0:13:12]} Be7 {[%emt 0:01:42]} 9. Qb3 {[%emt 0:00:33]} Nb6 {
[%emt 0:00:49]} 10. Nfe5 {[%emt 0:17:19]} Be4 {[%emt 0:11:10]} 11. f3 {[%emt 0:
00:00]} Bd5 {[%emt 0:07:44]} 12. Qc3 {[%emt 0:01:00]} Bxc4 {[%emt 0:15:00]} 13.
Nxc4 {[%emt 0:00:13]} c5 {[%emt 0:02:03]} 14. dxc5 {[%emt 0:14:52]} Bxc5+ {
[%emt 0:00:18]} 15. Kh1 {[%emt 0:00:15]} Rc8 {[%emt 0:03:03]} 16. Nxb6 {
[%emt 0:09:18]} Bxb6 {[%emt 0:02:07]} 17. Qb4 {[%emt 0:02:06]} Nd5 {[%emt 0:00:
00]} 18. Qa4+ {[%emt 0:01:42]} Qd7 {[%emt 0:01:15]} 19. Qxd7+ {[%emt 0:10:21]}
Kxd7 {[%emt 0:00:04]} 20. e4 {[%emt 0:00:34]} Nb4 {[%emt 0:08:37]} 21. Bd2 {
[%emt 0:04:39]} Nd3 {[%emt 0:04:15]} 22. h3 {[%emt 0:04:04]} Nxb2 {[%emt 0:00:
00]} 23. Bb4 {[%emt 0:00:25]} Bd4 {[%emt 0:02:13]} 24. f4 {[%emt 0:00:36]} Rhd8
{[%emt 0:03:41]} 25. e5 {[%emt 0:00:24]} b6 {[%emt 0:00:30]} 26. Rab1 {[%emt 0:
00:00]} a5 {[%emt 0:06:25]} 27. Ba3 {[%emt 0:00:33]} Nc4 {[%emt 0:00:45]} 28.
Rfd1 {[%emt 0:00:25]} Ke8 {[%emt 0:01:19]} 29. Bd6 {[%emt 0:00:35]} Bf2 {
[%emt 0:01:23]} 30. Bf1 {[%emt 0:00:30]} Bxg3 {[%emt 0:00:36]} 31. Bxc4 {
[%emt 0:00:30]} Rxc4 {[%emt 0:00:04]} 32. Rxb6 {[%emt 0:00:10]} Bxf4 {[%emt 0:
00:00]} 33. Rb7 {[%emt 0:00:43]} Rd7 {[%emt 0:00:39]} 34. Rb8+ {[%emt 0:00:16]}
Rd8 {[%emt 0:00:04]} 35. Rb7 {[%emt 0:00:01]} Rd7 {[%emt 0:01:03]} 36. Rb8+ {
[%emt 0:00:01]} Rd8 {[%emt 0:00:04]} 37. Rb7 {[%emt 0:00:02]} Rd7 {[%emt 0:00:
00]} 38. Rb8+ {[%emt 0:00:09]} Rd8 {[%emt 0:00:03]} 1/2-1/2